fUST/lending_fUST_20250531
["ID","MTS","AMOUNT","RATE_DAILY","PERIOD"]
[363198474,1748621132061,200.0,0.0002378,120]
[363198476,1748621350181,-3879.41280686,0.0001704,2]
[363198477,1748621350205,-813.665196,0.00017212,2]
[363198478,1748621350230,-500.0,0.00017212,2]
[363198479,1748621350255,-293.03353784,0.00017212,2]
[363198480,1748621350279,-300.0,0.00017906,2]
[363198481,1748621350303,-4557.3687391,0.00017907,2]
[363198482,1748621350326,-300.0,0.00018094,2]
[363198483,1748621350348,-1998.5197202,0.00018095,2]
[363198529,1748621438388,-210.639647,0.00017741,2]
[363198531,1748621438398,-136.1118184,0.00018095,2]
[363198532,1748621438407,-255.657,0.0001862,2]
[363198534,1748621438417,-201.30442565,0.00018676,2]
[363198537,1748621438427,-154.4189384,0.000187,2]
[363198538,1748621438437,-6.15193785,0.00018766,2]
[363198544,1748621438484,-201.24806215,0.00018766,2]
[363198546,1748621438494,-300.0,0.00018768,2]
[363198548,1748621438504,-223.0,0.00018768,2]
[363198550,1748621438514,-164.91529568,0.00018768,2]
[363198552,1748621438524,-584.37078786,0.00018768,2]
[363198554,1748621438533,-297.61578343,0.00018768,2]
[363198556,1748621438542,-171.23449552,0.00018768,2]
[363198558,1748621438552,-500.0,0.00018768,2]
[363198560,1748621438561,-500.0,0.00018768,2]
[363198562,1748621438571,-542.91010724,0.00018768,2]
[363198565,1748621438580,-500.0,0.00018768,2]
[363198566,1748621438590,-500.0,0.00018768,2]
[363198568,1748621438599,-380.81820674,0.00018768,2]
[363198570,1748621438609,-500.0,0.00018768,2]
[363198572,1748621438619,-500.0,0.00018768,2]
[363198574,1748621438628,-500.0,0.00018768,2]
[363198576,1748621438637,-500.0,0.00018768,2]
[363198578,1748621438647,-500.0,0.00018768,2]
[363198580,1748621438656,-307.77385042,0.00018768,2]
[363198582,1748621438668,-627.96360821,0.00018768,2]
[363198584,1748621438677,-306.30649462,0.00018768,2]
[363198586,1748621438686,-500.0,0.00018768,2]
[363198588,1748621438696,-500.0,0.00018768,2]
[363198590,1748621438706,-500.0,0.00018768,2]
[363198592,1748621438715,-500.0,0.00018768,2]
[363198594,1748621438725,-481.92632736,0.00018768,2]
[363198596,1748621438734,-500.0,0.00018768,2]
[363198598,1748621438745,-500.0,0.00018768,2]
[363198600,1748621438756,-500.0,0.00018768,2]
[363198602,1748621438766,-500.0,0.00018768,2]
[363198605,1748621438776,-500.0,0.00018768,2]
[363198607,1748621438785,-500.0,0.00018768,2]
[363198609,1748621438795,-500.0,0.00018768,2]
[363198610,1748621438804,-500.0,0.00018768,2]
[363198612,1748621438813,-500.0,0.00018768,2]
[363198614,1748621438822,-500.0,0.00018768,2]
[363198616,1748621438831,-500.0,0.00018768,2]
[363198619,1748621438841,-500.0,0.00018768,2]
[363198620,1748621438850,-500.0,0.00018768,2]
[363198622,1748621438859,-500.0,0.00018768,2]
[363198625,1748621438868,-500.0,0.00018768,2]
[363198627,1748621438878,-500.0,0.00018768,2]
[363198629,1748621438887,-500.0,0.00018768,2]
[363198631,1748621438897,-1105.22,0.00018769,2]
[363198632,1748621438906,-609.08592078,0.00018769,2]
[363198637,1748621438938,-49390.91407922,0.00018769,2]
[363198639,1748621438948,-1761.190363,0.00018794,2]
[363198641,1748621438958,-158.4280407,0.000188,2]
[363198643,1748621438968,-763.6215936,0.000188,2]
[363198645,1748621438977,-719.1041793,0.000188,2]
[363198647,1748621438986,-176.414694,0.000188,2]
[363198648,1748621438995,-158.4280407,0.000188,2]
[363198650,1748621439004,-176.414694,0.000188,2]
[363198652,1748621439013,-158.4280407,0.000188,2]
[363198654,1748621439022,-176.414694,0.000188,2]
[363198657,1748621439035,-306.0,0.00018877,2]
[363198658,1748621439044,-176.414694,0.00018877,2]
[363198660,1748621439053,-572.1885402,0.00018877,2]
[363198662,1748621439062,-572.1885402,0.00018877,2]
[363198664,1748621439071,-572.1885402,0.00018877,2]
[363198666,1748621439082,-5581.49446192,0.000189,2]
[363198668,1748621439091,-6873.83946828,0.000189,2]
[363198670,1748621439101,-282.4127299,0.000189,2]
[363198673,1748621439111,-5000.0,0.00018989,2]
[363198675,1748621439121,-300.0,0.00018989,2]
[363198676,1748621439130,-300.0,0.00018989,2]
[363198679,1748621439140,-300.0,0.00018989,2]
[363198681,1748621439151,-300.0,0.00018989,2]
[363198683,1748621439160,-300.0,0.00018989,2]
[363198685,1748621439170,-300.0,0.00018989,2]
[363198687,1748621439179,-300.0,0.00018989,2]
[363198689,1748621439189,-300.0,0.00018989,2]
[363198691,1748621439198,-300.0,0.00018989,2]
[363198693,1748621439207,-300.0,0.00018989,2]
[363198695,1748621439217,-300.0,0.00018989,2]
[363198697,1748621439226,-300.0,0.00018989,2]
[363198699,1748621439235,-300.0,0.00018989,2]
[363198701,1748621439244,-300.0,0.00018989,2]
[363198703,1748621439254,-300.0,0.00018989,2]
[363198705,1748621439264,-477.46,0.0001899,3]
[363198707,1748621439274,-238.73,0.0001899,3]
[363198709,1748621439284,-716.19,0.0001899,3]
[363198711,1748621439293,-500.0,0.00018999,2]
[363198713,1748621439302,-567.59862092,0.00018999,2]
[363198715,1748621439311,-567.59862092,0.00018999,2]
[363198717,1748621439320,-567.59862092,0.00018999,2]
[363198718,1748621439330,-500.0,0.00018999,2]
[363198720,1748621439339,-567.59862092,0.00018999,2]
[363198722,1748621439348,-567.59862092,0.00018999,2]
[363198724,1748621439357,-567.59862092,0.00018999,2]
[363198726,1748621439366,-481.93975084,0.00018999,2]
[363198728,1748621439375,-567.59862092,0.00018999,2]
[363198730,1748621439385,-567.59862092,0.00018999,2]
[363198732,1748621439395,-567.59862092,0.00018999,2]
[363198734,1748621439404,-567.59862092,0.00018999,2]
[363198736,1748621439413,-567.59862092,0.00018999,2]
[363198738,1748621439423,-567.59862092,0.00018999,2]
[363198740,1748621439432,-567.59862092,0.00018999,2]
[363198742,1748621439441,-567.59862092,0.00018999,2]
[363198744,1748621439451,-571.65289678,0.00018999,2]
[363198746,1748621439460,-571.65289678,0.00018999,2]
[363198748,1748621439470,-571.65289678,0.00018999,2]
[363198750,1748621439479,-571.65289678,0.00018999,2]
[363198752,1748621439488,-571.65289678,0.00018999,2]
[363198754,1748621439498,-571.65289678,0.00018999,2]
[363198756,1748621439507,-571.65289678,0.00018999,2]
[363198758,1748621439517,-571.65289678,0.00018999,2]
[363198760,1748621439528,-571.65289678,0.00018999,2]
[363198762,1748621439538,-681.21970199,0.00018999,2]
[363198764,1748621439547,-681.21970199,0.00018999,2]
[363198766,1748621439556,-681.21970199,0.00018999,2]
[363198768,1748621439566,-681.21970199,0.00018999,2]
[363198770,1748621439575,-3680.80861707,0.00019,3]
[363198772,1748621439585,-30363.1659986,0.00019,2]
[363198774,1748621439594,-1381702.40356746,0.00019,2]
[363198879,1748621440611,-808.2,0.00019,2]
[363202141,1748621549972,373.714565,0.00013699,2]
[363204721,1748622390529,634.6,0.00024649,120]
[363204723,1748622473504,196.78247358,0.00016,2]
[363204725,1748622558159,-1830.89520451,0.00016731,2]
[363204726,1748622560137,-1202.40710369,0.00016731,2]
[363204727,1748622560160,-300.0,0.00017298,2]
[363204728,1748622560188,-300.0,0.00017298,2]
[363204729,1748622560209,-300.0,0.00017299,2]
[363204730,1748622560230,-300.0,0.00017299,2]
[363204731,1748622560253,-797.0,0.00017299,2]
[363204732,1748622560274,-6289.0,0.00017299,2]
[363204733,1748622560296,-18412.2708056,0.000173,2]
[363204734,1748622560319,-500.0,0.0001774,2]
[363204735,1748622560340,-500.0,0.0001774,2]
[363204736,1748622560361,-500.0,0.0001774,2]
[363204737,1748622560384,-500.0,0.0001774,2]
[363204738,1748622560405,-500.0,0.0001774,2]
[363204739,1748622560430,-500.0,0.0001774,2]
[363204740,1748622560452,-500.0,0.0001774,2]
[363204741,1748622560474,-500.0,0.0001774,2]
[363204742,1748622560496,-500.0,0.0001774,2]
[363204743,1748622560517,-500.0,0.0001774,2]
[363204744,1748622560537,-500.0,0.0001774,2]
[363204745,1748622560559,-500.0,0.0001774,2]
[363204746,1748622560581,-213.99758765,0.0001774,2]
[363204747,1748622560601,-500.0,0.0001774,2]
[363204748,1748622560623,-180.88484536,0.0001774,2]
[363204749,1748622560646,-500.0,0.0001774,2]
[363204750,1748622560667,-500.0,0.0001774,2]
[363204751,1748622560695,-448.78011357,0.0001774,2]
[363204752,1748622560717,-500.0,0.0001774,2]
[363204753,1748622560738,-500.0,0.0001774,2]
[363204754,1748622560760,-500.0,0.0001774,2]
[363204755,1748622560781,-500.0,0.0001774,2]
[363204756,1748622560802,-500.0,0.0001774,2]
[363204757,1748622560823,-500.0,0.0001774,2]
[363204758,1748622560844,-551.84120588,0.0001774,2]
[363204759,1748622560865,-500.0,0.0001774,2]
[363204760,1748622560885,-350.57257841,0.00017741,2]
[363204761,1748622560906,-50000.0,0.00017741,2]
[363204762,1748622560931,-24900.0,0.00017763,2]
[363204763,1748622560950,-231.0758996,0.00017766,2]
[363204764,1748622560971,-162.56,0.00018,2]
[363204765,1748622560992,-711.89561958,0.00018,2]
[363204766,1748622571104,-163.7463999,0.00017662,2]
[363204789,1748622632277,-10.57652693,0.00017662,2]
[363204790,1748622632286,-315.14192567,0.0001774,2]
[363204791,1748622632332,-184.85807433,0.0001774,2]
[363204792,1748622632342,-1394.14088871,0.00018,2]
[363204793,1748622632353,-998.63634442,0.0001814,5]
[363204794,1748622632363,-207.4,0.00018216,2]
[363204795,1748622632373,-174.32292683,0.00018354,2]
[363204796,1748622632383,-1096.87,0.0001872,2]
[363204797,1748622632394,-2022.380766,0.00018794,2]
[363204798,1748622632405,-300.0,0.00018887,2]
[363204799,1748622632416,-300.0,0.00018887,2]
[363204800,1748622632427,-300.0,0.00018887,2]
[363204801,1748622632438,-420.0,0.00018888,2]
[363204802,1748622632449,-165.52936276,0.000189,2]
[363204803,1748622632461,-593.78019443,0.000189,2]
[363204804,1748622632471,-323.62785105,0.00018965,2]
[363204805,1748622632487,-197.4141921,0.00018989,2]
[363204806,1748622632502,-300.0,0.00018989,2]
[363204807,1748622632513,-300.0,0.00018989,2]
[363204808,1748622632526,-300.0,0.00018989,2]
[363204809,1748622632537,-300.0,0.00018989,2]
[363204810,1748622632550,-300.0,0.00018989,2]
[363204811,1748622632561,-300.0,0.00018989,2]
[363204812,1748622632573,-5000.0,0.00018989,2]
[363204813,1748622632584,-300.0,0.00018989,2]
[363204814,1748622632595,-300.0,0.00018989,2]
[363204815,1748622632606,-300.0,0.00018989,2]
[363204816,1748622632616,-300.0,0.00018989,2]
[363204817,1748622632627,-300.0,0.00018989,2]
[363204818,1748622632639,-300.0,0.00018989,2]
[363204819,1748622632650,-18.66555164,0.00018989,2]
[363204820,1748622632718,-281.33444836,0.00018989,2]
[363204821,1748622632728,-300.0,0.00018989,2]
[363204822,1748622632747,-300.0,0.00018989,2]
[363204823,1748622632756,-156.587,0.00018989,2]
[363204824,1748622632766,-26189.41853863,0.00019,2]
[363204825,1748622632775,-151.0,0.00019,2]
[363204826,1748622632785,-151.0,0.00019,2]
[363204827,1748622632796,-151.0,0.00019,2]
[363204828,1748622632807,-151.0,0.00019,2]
[363204829,1748622632816,-151.0,0.00019,2]
[363204830,1748622632826,-151.0,0.00019,2]
[363204831,1748622632836,-294.91963883,0.00019044,2]
[363204832,1748622632845,-2216.83824382,0.00019046,2]
[363204833,1748622632856,-174.32292683,0.00019046,2]
[363204834,1748622632866,-151.0,0.00019075,2]
[363204835,1748622632875,-2216.8382438,0.00019123,2]
[363204836,1748622632885,-238.73,0.00019136,3]
[363204837,1748622632894,-716.19,0.00019136,3]
[363204838,1748622632904,-153.0,0.0001914,2]
[363204839,1748622632913,-151.28192794,0.00019146,2]
[363204840,1748622632923,-720.0,0.00019146,2]
[363204841,1748622632933,-720.0,0.00019146,2]
[363204842,1748622632943,-720.0,0.00019146,2]
[363204843,1748622632952,-172.0,0.00019146,2]
[363204844,1748622632960,-720.0,0.00019146,2]
[363204845,1748622632970,-720.0,0.00019146,2]
[363204846,1748622632980,-720.0,0.00019146,2]
[363204847,1748622632994,-720.0,0.00019146,2]
[363204848,1748622633004,-200.32586624,0.00019146,2]
[363204849,1748622633013,-720.0,0.00019146,2]
[363204850,1748622633023,-720.0,0.00019146,2]
[363204851,1748622633033,-720.0,0.00019146,2]
[363204852,1748622633043,-720.0,0.00019146,2]
[363204853,1748622633054,-720.0,0.00019146,2]
[363204854,1748622633066,-720.0,0.00019146,2]
[363204855,1748622633078,-720.0,0.00019146,2]
[363204856,1748622633090,-720.0,0.00019146,2]
[363204857,1748622633103,-720.0,0.00019146,2]
[363204858,1748622633116,-720.0,0.00019146,2]
[363204859,1748622633127,-720.0,0.00019146,2]
[363204860,1748622633139,-316.0,0.00019146,2]
[363204861,1748622633150,-720.0,0.00019146,2]
[363204862,1748622633161,-720.0,0.00019146,2]
[363204863,1748622633172,-316.0,0.00019146,2]
[363204864,1748622633183,-720.0,0.00019146,2]
[363204865,1748622633195,-316.0,0.00019146,2]
[363204866,1748622633206,-720.0,0.00019146,2]
[363204867,1748622633215,-316.0,0.00019146,2]
[363204868,1748622633226,-720.0,0.00019146,2]
[363204869,1748622633241,-316.0,0.00019146,2]
[363204870,1748622633252,-720.0,0.00019146,2]
[363204871,1748622633263,-316.0,0.00019146,2]
[363204872,1748622633273,-720.0,0.00019146,2]
[363204873,1748622633284,-316.0,0.00019146,2]
[363204874,1748622633294,-720.0,0.00019146,2]
[363204875,1748622633305,-316.0,0.00019146,2]
[363204876,1748622633315,-720.0,0.00019146,2]
[363204877,1748622633326,-316.0,0.00019146,2]
[363204878,1748622633337,-720.0,0.00019146,2]
[363204879,1748622633348,-316.0,0.00019146,2]
[363204880,1748622633359,-720.0,0.00019146,2]
[363204881,1748622633373,-316.0,0.00019146,2]
[363204882,1748622633385,-720.0,0.00019146,2]
[363204883,1748622633396,-316.0,0.00019146,2]
[363204884,1748622633407,-720.0,0.00019146,2]
[363204885,1748622633418,-316.0,0.00019146,2]
[363204886,1748622633428,-720.0,0.00019146,2]
[363204887,1748622633440,-316.0,0.00019146,2]
[363204888,1748622633454,-720.0,0.00019146,2]
[363204889,1748622633463,-720.0,0.00019146,2]
[363204890,1748622633473,-316.0,0.00019146,2]
[363204891,1748622633486,-720.0,0.00019146,2]
[363204892,1748622633497,-316.0,0.00019146,2]
[363204893,1748622633507,-316.0,0.00019146,2]
[363204894,1748622633517,-720.0,0.00019146,2]
[363204895,1748622633527,-720.0,0.00019146,2]
[363204896,1748622633537,-316.0,0.00019146,2]
[363204897,1748622633547,-316.0,0.00019146,2]
[363204898,1748622633557,-720.0,0.00019146,2]
[363204899,1748622633567,-720.0,0.00019146,2]
[363204900,1748622633577,-316.0,0.00019146,2]
[363204901,1748622633589,-720.0,0.00019146,2]
[363204902,1748622633600,-316.0,0.00019146,2]
[363204903,1748622633610,-720.0,0.00019146,2]
[363204904,1748622633620,-316.0,0.00019146,2]
[363204905,1748622633631,-720.0,0.00019146,2]
[363204906,1748622633641,-316.0,0.00019146,2]
[363204907,1748622633651,-720.0,0.00019146,2]
[363204908,1748622633661,-316.0,0.00019146,2]
[363204909,1748622633672,-720.0,0.00019146,2]
[363204910,1748622633682,-316.0,0.00019146,2]
[363204911,1748622633692,-720.0,0.00019146,2]
[363204912,1748622633703,-316.0,0.00019146,2]
[363204913,1748622633713,-420.81280257,0.00019146,2]
[363204914,1748622633725,-316.0,0.00019146,2]
[363204915,1748622633740,-316.0,0.00019146,2]
[363204916,1748622633752,-316.0,0.00019146,2]
[363204917,1748622633763,-316.0,0.00019146,2]
[363204918,1748622633774,-316.0,0.00019146,2]
[363204919,1748622633784,-316.0,0.00019146,2]
[363204920,1748622633796,-316.0,0.00019146,2]
[363204921,1748622633807,-316.0,0.00019146,2]
[363204922,1748622633818,-316.0,0.00019146,2]
[363204923,1748622633828,-316.0,0.00019146,2]
[363204924,1748622633839,-316.0,0.00019146,2]
[363204925,1748622633850,-316.0,0.00019146,2]
[363204926,1748622633860,-316.0,0.00019146,2]
[363204927,1748622633870,-316.0,0.00019146,2]
[363204928,1748622633880,-316.0,0.00019146,2]
[363204929,1748622633889,-316.0,0.00019146,2]
[363204930,1748622633899,-272.44181794,0.00019146,2]
[363204941,1748622638397,-43.55818206,0.00019146,2]
[363204942,1748622638409,-316.0,0.00019146,2]
[363204943,1748622638418,-316.0,0.00019146,2]
[363204944,1748622638428,-316.0,0.00019146,2]
[363204945,1748622638438,-316.0,0.00019146,2]
[363204946,1748622638448,-316.0,0.00019146,2]
[363204947,1748622638458,-316.0,0.00019146,2]
[363204948,1748622638468,-316.0,0.00019146,2]
[363204949,1748622638478,-316.0,0.00019146,2]
[363204950,1748622638492,-316.0,0.00019146,2]
[363204951,1748622638501,-316.0,0.00019146,2]
[363204952,1748622638510,-316.0,0.00019146,2]
[363204953,1748622638519,-316.0,0.00019146,2]
[363204954,1748622638528,-31.38988744,0.00019146,2]
[363204955,1748622638539,-284.61011256,0.00019146,2]
[363204956,1748622638549,-316.0,0.00019146,2]
[363204957,1748622638558,-316.0,0.00019146,2]
[363204958,1748622638568,-316.0,0.00019146,2]
[363204959,1748622638577,-316.0,0.00019146,2]
[363204960,1748622638587,-316.0,0.00019146,2]
[363204961,1748622638596,-316.0,0.00019146,2]
[363204962,1748622638606,-316.0,0.00019146,2]
[363204963,1748622638616,-344.82941414,0.00019146,2]
[363204964,1748622638626,-168.0,0.00019146,2]
[363204965,1748622638636,-168.0,0.00019146,2]
[363204966,1748622638645,-168.0,0.00019146,2]
[363204967,1748622638655,-168.0,0.00019146,2]
[363204968,1748622638666,-168.0,0.00019146,2]
[363204969,1748622638677,-168.0,0.00019146,2]
[363204970,1748622638688,-168.0,0.00019146,2]
[363204971,1748622638697,-172.32768208,0.00019146,2]
[363204972,1748622638707,-25.7732543,0.00019146,2]
[363204985,1748622645852,-216.53112373,0.00018999,2]
[363204986,1748622645862,-468.22195418,0.00018999,2]
[363204987,1748622645872,-450.20457843,0.00018999,2]
[363204989,1748622645881,-694.2267457,0.00019146,2]
[363204991,1748622645893,-720.0,0.00019146,2]
[363204993,1748622645904,-720.0,0.00019146,2]
[363204994,1748622645914,-720.0,0.00019146,2]
[363204996,1748622645924,-450.81559796,0.00019146,2]
[363204999,1748622645935,-269.18440204,0.00019146,2]
[363205002,1748622645946,-720.0,0.00019146,2]
[363205006,1748622645955,-256.99865383,0.00019146,2]
[363205019,1748622646039,-301.3685231,0.00019146,2]
[363205020,1748622646051,-161.63282307,0.00019146,2]
[363205021,1748622646060,-720.0,0.00019146,2]
[363205022,1748622646070,-720.0,0.00019146,2]
[363205023,1748622646080,-720.0,0.00019146,2]
[363205024,1748622646089,-720.0,0.00019146,2]
[363205025,1748622646098,-637.75387221,0.00019146,2]
[363205026,1748622646110,-316.0,0.00019146,2]
[363205027,1748622646120,-490.84401556,0.00019146,2]
[363205028,1748622646143,-229.15598444,0.00019146,2]
[363205029,1748622646154,-720.0,0.00019146,2]
[363205030,1748622646164,-609.13417701,0.00019146,2]
[363205031,1748622646460,-110.86582299,0.00019146,2]
[363205032,1748622646470,-166.0,0.00019146,2]
[363205033,1748622646480,-720.0,0.00019146,2]
[363205034,1748622646489,-166.0,0.00019146,2]
[363205035,1748622646514,-720.0,0.00019146,2]
[363205036,1748622646524,-720.0,0.00019146,2]
[363205037,1748622646535,-720.0,0.00019146,2]
[363205038,1748622646545,-720.0,0.00019146,2]
[363205039,1748622646554,-720.0,0.00019146,2]
[363205040,1748622646563,-720.0,0.00019146,2]
[363205041,1748622646573,-720.0,0.00019146,2]
[363205042,1748622646583,-720.0,0.00019146,2]
[363205043,1748622646592,-720.0,0.00019146,2]
[363205044,1748622646602,-720.0,0.00019146,2]
[363205045,1748622646611,-720.0,0.00019146,2]
[363205046,1748622646620,-720.0,0.00019146,2]
[363205047,1748622646630,-390.01137871,0.00019146,2]
[363205048,1748622646640,-160.0,0.00019172,2]
[363205049,1748622646650,-500.0,0.00019173,2]
[363205050,1748622646665,-367.65937497,0.00019173,2]
[363205051,1748622646681,-159.30782091,0.00019173,2]
[363205052,1748622646700,-340.69217909,0.00019173,2]
[363205053,1748622646711,-500.0,0.00019173,2]
[363205054,1748622646725,-500.0,0.00019173,2]
[363205055,1748622646739,-500.0,0.00019173,2]
[363205056,1748622646759,-500.0,0.00019173,2]
[363205057,1748622646773,-500.0,0.00019173,2]
[363205058,1748622646788,-500.0,0.00019173,2]
[363205059,1748622646802,-500.0,0.00019173,2]
[363205060,1748622646816,-500.0,0.00019173,2]
[363205061,1748622646828,-470.40782091,0.00019173,2]
[363205153,1748622660089,355.028836,0.00013699,2]
[363205175,1748622763641,194.0,0.00016,2]
[363205180,1748622989890,4862.06370275,0.00016,12]
[363205181,1748622989906,1651.93629725,0.00016,12]
[363205196,1748623633107,-375.10715207,0.00017316,2]
[363205200,1748623694824,385.543288,0.00013699,2]
[363205202,1748623747185,-4624.89284793,0.00017316,2]
[363205203,1748623747207,-160.0,0.00017762,2]
[363205204,1748623747227,-1200.0,0.00017976,2]
[363205205,1748623747248,-3368.02135207,0.00017977,2]
[363205263,1748623838033,-2630.50495774,0.00017797,2]
[363205266,1748623838043,-194.29610243,0.00017977,2]
[363205267,1748623838053,-300.0,0.00018207,2]
[363205268,1748623838062,-171.7309387,0.00018208,2]
[363205269,1748623838072,-1096.97,0.00018775,2]
[363205270,1748623838081,-300.0,0.0001879,2]
[363205272,1748623838090,-300.0,0.0001879,2]
[363205274,1748623838100,-300.0,0.0001879,2]
[363205276,1748623838109,-500.0,0.00018791,2]
[363205278,1748623838118,-500.0,0.00018791,2]
[363205280,1748623838127,-632.13306359,0.00018791,2]
[363205282,1748623838136,-500.0,0.00018791,2]
[363205284,1748623838146,-500.0,0.00018791,2]
[363205286,1748623838155,-500.0,0.00018791,2]
[363205288,1748623838166,-500.0,0.00018791,2]
[363205290,1748623838175,-500.0,0.00018791,2]
[363205292,1748623838185,-500.0,0.00018791,2]
[363205294,1748623838194,-521.19839105,0.00018791,2]
[363205296,1748623838203,-500.0,0.00018791,2]
[363205298,1748623838213,-500.0,0.00018791,2]
[363205300,1748623838222,-210.79530588,0.00018791,2]
[363205302,1748623838231,-219.76830648,0.00018791,2]
[363205304,1748623838241,-234.91667018,0.00018791,2]
[363205306,1748623838250,-1845.120402,0.00018792,2]
[363205309,1748623838259,-21370.09588686,0.00018792,2]
[363205311,1748623838271,-5225.0,0.00018792,2]
[363205314,1748623838287,-12389.44285855,0.00018792,2]
[363205316,1748623838296,-163.71048228,0.000188,2]
[363205318,1748623838305,-207.4,0.00018889,2]
[363205320,1748623838314,-395.85346295,0.000189,2]
[363205322,1748623838324,-300.0,0.0001906,2]
[363205324,1748623838334,-300.0,0.0001906,2]
[363205325,1748623838345,-300.0,0.0001906,2]
[363205328,1748623838354,-300.0,0.0001906,2]
[363205329,1748623838364,-300.0,0.0001906,2]
[363205331,1748623838373,-300.0,0.0001906,2]
[363205333,1748623838382,-300.0,0.0001906,2]
[363205335,1748623838392,-300.0,0.0001906,2]
[363205337,1748623838401,-300.0,0.0001906,2]
[363205339,1748623838411,-300.0,0.0001906,2]
[363205340,1748623838421,-300.0,0.0001906,2]
[363205342,1748623838430,-5000.0,0.0001906,2]
[363205344,1748623838440,-300.0,0.0001906,2]
[363205346,1748623838450,-300.0,0.0001906,2]
[363205347,1748623838459,-300.0,0.0001906,2]
[363205348,1748623838468,-300.0,0.0001906,2]
[363205349,1748623838479,-2069.93340936,0.00019078,2]
[363205350,1748623838489,-160.0,0.00019132,2]
[363205351,1748623838498,-153.0,0.00019146,2]
[363205352,1748623838508,-153.0,0.00019146,2]
[363205353,1748623838518,-153.0,0.00019146,2]
[363205354,1748623838532,-153.0,0.00019146,2]
[363205355,1748623838542,-153.0,0.00019146,2]
[363205356,1748623838552,-153.0,0.00019146,2]
[363205357,1748623838563,-153.0,0.00019146,2]
[363205358,1748623838573,-153.0,0.00019146,2]
[363205359,1748623838584,-153.0,0.00019146,2]
[363205360,1748623838593,-316.0,0.00019146,2]
[363205361,1748623838603,-316.0,0.00019146,2]
[363205362,1748623838613,-316.0,0.00019146,2]
[363205363,1748623838623,-316.0,0.00019146,2]
[363205364,1748623838633,-316.0,0.00019146,2]
[363205365,1748623838642,-316.0,0.00019146,2]
[363205366,1748623838652,-316.0,0.00019146,2]
[363205367,1748623838665,-316.0,0.00019146,2]
[363205368,1748623838674,-316.0,0.00019146,2]
[363205369,1748623838683,-316.0,0.00019146,2]
[363205370,1748623838693,-316.0,0.00019146,2]
[363205371,1748623838702,-316.0,0.00019146,2]
[363205372,1748623838712,-316.0,0.00019146,2]
[363205373,1748623838721,-316.0,0.00019146,2]
[363205374,1748623838731,-316.0,0.00019146,2]
[363205375,1748623838741,-316.0,0.00019146,2]
[363205376,1748623838751,-316.0,0.00019146,2]
[363205377,1748623838761,-316.0,0.00019146,2]
[363205379,1748623838771,-316.0,0.00019146,2]
[363205381,1748623838780,-316.0,0.00019146,2]
[363205383,1748623838791,-316.0,0.00019146,2]
[363205384,1748623838800,-316.0,0.00019146,2]
[363205385,1748623838809,-316.0,0.00019146,2]
[363205386,1748623838819,-316.0,0.00019146,2]
[363205387,1748623838829,-316.0,0.00019146,2]
[363205388,1748623838840,-316.0,0.00019146,2]
[363205389,1748623838850,-316.0,0.00019146,2]
[363205390,1748623838860,-316.0,0.00019146,2]
[363205391,1748623838870,-151.0,0.00019146,2]